bitfinex-derivatives/quotes_ETHF0:USTF0_20250704
["timestamp","ask_amount","ask_price","bid_price","bid_amount"]
[1751671384032,11.18,2513.5,2513.4,0.79553]
[1751671384228,13.8871,2513.9,2513.8,0.79541]
[1751671384429,51.05792482,2513.9,2513.8,0.79541]
[1751671388634,51.85329482,2513.9,2513.8,0.79541]
[1751671388934,51.05792482,2513.9,2513.8,0.79541]
[1751671389135,51.85329482,2513.9,2513.8,0.79541]
[1751671389934,51.05792482,2513.9,2513.8,0.79541]
[1751671391336,49.9621,2513.9,2513.8,0.79541]
[1751671391835,50.75747,2513.9,2513.8,0.79541]
[1751671393136,49.9621,2513.9,2513.8,0.79541]
[1751671393436,13.8871,2513.9,2513.8,0.79541]
[1751671393637,57.309,2514.0,2513.9,0.79537]
[1751671393838,105.65071303,2514.0,2513.9,0.79537]
[1751671394036,104.557,2514.0,2513.9,0.79537]
[1751671394237,93.379,2514.0,2513.9,0.79537]
[1751671394437,93.379,2514.0,2513.9,1.49607]
[1751671395228,93.377,2514.0,2513.9,1.49607]
[1751671397038,57.309,2514.0,2513.9,1.49607]
[1751671397341,93.377,2514.0,2513.9,1.49607]
[1751671399241,0.6465,2514.1,2514.0,0.79534]
[1751671399436,36.7125,2514.1,2514.0,0.79534]
[1751671399835,36.066,2514.1,2514.0,0.79534]
[1751671400342,0.79528,2514.2,2514.1,0.79529]
[1751671400530,36.86128,2514.2,2514.1,0.79529]
[1751671400735,36.066,2514.2,2514.1,0.79529]
[1751671401241,13.93057,2514.3,2513.9,0.7007]
[1751671401242,13.1353,2514.3,2514.2,0.79528]
[1751671401541,50.29289245,2514.3,2514.2,0.79528]
[1751671401841,51.08814245,2514.3,2514.2,0.79528]
[1751671403945,3.05289245,2514.3,2514.2,0.79528]
[1751671404139,38.0243,2514.3,2514.2,0.79528]
[1751671406247,0.7953,2514.2,2514.1,0.79528]
[1751671406448,2.1516,2514.2,2514.1,0.79528]
[1751671406948,1.3563,2514.2,2513.4,1.9888]
[1751671407246,0.79539,2513.9,2513.8,0.79538]
[1751671407446,0.79548,2513.6,2513.5,0.79548]
[1751671407648,36.85648,2513.6,2513.5,0.7955]
[1751671407845,36.061,2513.6,2513.2,1.47838]
[1751671408043,1.3023,2513.5,2512.9,0.6541]
[1751671408343,0.79562,2513.2,2513.0,0.79565]
[1751671408550,37.3633,2513.1,2512.9,0.6828]
[1751671408747,36.061,2513.0,2512.9,0.6828]
[1751671408947,37.3633,2513.0,2512.9,1.47849]
[1751671409849,37.3633,2513.0,2512.9,0.6828]
[1751671410549,38.15896,2513.0,2512.9,0.6828]
[1751671410749,37.3633,2513.0,2512.9,1.47849]
[1751671411252,36.061,2513.0,2512.9,1.47849]
[1751671412252,1.47451,2513.2,2513.0,0.79566]
[1751671412454,36.065,2513.1,2513.0,0.79566]
[1751671412655,37.4229,2513.1,2513.0,0.79566]
[1751671413154,38.21854,2513.1,2512.9,1.47848]
[1751671413356,38.21854,2513.1,2512.9,0.79568]
[1751671414057,0.7116,2513.0,2512.9,0.79568]
[1751671414257,2.0056,2513.0,2512.9,0.79568]
[1751671417557,0.7116,2513.0,2512.9,0.79568]
[1751671417758,36.065,2513.1,2513.0,0.79566]
[1751671418152,0.6789,2513.2,2513.1,0.79563]
[1751671418355,36.7479,2513.2,2513.1,0.79563]
[1751671420361,38.744,2513.2,2513.1,0.79563]
[1751671421856,39.5396,2513.2,2513.1,0.79563]
[1751671422057,38.744,2513.2,2513.1,0.79563]
[1751671422464,38.744,2513.2,2513.0,0.79563]
[1751671422465,39.5396,2513.2,2513.0,0.79563]
[1751671422763,39.5396,2513.2,2513.1,0.79563]
[1751671423657,38.744,2513.2,2513.1,0.79563]
[1751671426061,57.284,2513.8,2513.0,1.98912]
[1751671426260,2.6629,2513.6,2513.5,0.7955]
[1751671426466,11.177,2513.7,2513.6,0.79547]
[1751671426760,47.247,2513.7,2513.6,0.79547]
[1751671430867,11.177,2513.7,2513.6,0.79547]
[1751671431068,47.245,2513.7,2513.6,0.79547]
[1751671437972,48.5844,2513.7,2513.6,0.79547]
[1751671441086,57.284,2513.8,2513.3,3.32295]
[1751671441087,57.284,2513.8,2513.7,0.79544]
[1751671441288,93.346,2513.8,2513.7,0.79544]
[1751671441691,57.284,2513.8,2513.7,0.79544]
[1751671441886,93.346,2513.8,2513.7,0.79544]
[1751671442191,57.284,2513.8,2513.7,0.79544]
[1751671442487,1.3263,2514.3,2513.5,0.6599]
[1751671442684,1.3263,2514.3,2514.2,0.79528]
[1751671442878,48.5623,2514.3,2514.2,0.79528]
[1751671444284,12.5003,2514.3,2514.2,0.79528]
[1751671444488,48.5613,2514.3,2514.2,0.79528]
[1751671451489,1.3263,2514.3,2514.2,0.79528]
[1751671451694,12.4902,2514.4,2514.3,0.79525]
[1751671451890,48.5462,2514.4,2514.3,0.79525]
[1751671452087,49.9162,2514.4,2514.3,0.79525]
[1751671453592,13.8602,2514.4,2514.3,0.79525]
[1751671453792,49.9142,2514.4,2514.3,0.79525]
[1751671454990,13.8602,2514.4,2514.3,0.79525]
[1751671455194,68.465,2514.6,2514.5,0.79519]
[1751671455495,104.518,2514.6,2514.5,0.79519]
[1751671460393,105.2332,2514.6,2514.5,0.79519]
[1751671460588,106.02835,2514.6,2514.5,0.79519]
[1751671460795,106.5323,2514.6,2514.5,0.79519]
[1751671463596,0.7952,2514.5,2514.4,0.7952]
[1751671463803,1.3014,2514.5,2514.0,1.3863]
[1751671464101,36.7219,2514.4,2514.0,1.3863]
[1751671464301,1.3014,2514.3,2514.0,1.3863]
[1751671464601,36.047,2514.2,2514.1,0.79531]
[1751671467401,36.047,2514.2,2514.0,1.3863]
[1751671467606,37.53181,2514.2,2514.0,0.79533]
[1751671467810,1.4267,2514.1,2514.0,0.79533]
[1751671469305,2.22201,2514.1,2514.0,0.79533]
[1751671469507,2.22203,2514.1,2513.9,0.79535]
[1751671469701,38.20384,2514.0,2513.9,0.79535]
[1751671470609,37.4085,2514.0,2513.9,0.79535]
[1751671472110,1.3625,2514.0,2513.9,0.79535]
[1751671472311,0.6895,2514.2,2514.1,0.79531]
[1751671472606,47.9065,2514.2,2514.1,0.79531]
[1751671473009,49.2358,2514.2,2514.1,0.79531]
[1751671475007,2.0188,2514.2,2514.1,0.79531]
[1751671475207,49.2368,2514.2,2514.1,0.79531]
[1751671477711,50.03208,2514.2,2514.1,0.79531]
[1751671478914,2.81408,2514.2,2514.1,0.79531]
[1751671479112,38.86208,2514.2,2514.1,0.79531]
[1751671481214,0.79532,2514.1,2514.0,0.79532]
[1751671481415,2.13342,2514.1,2514.0,0.79532]
[1751671483114,2.13342,2514.1,2513.9,0.79536]
[1751671483115,0.79537,2514.0,2513.9,0.79536]
[1751671483317,36.84437,2514.0,2513.9,0.79536]
[1751671484419,36.049,2514.0,2513.9,0.79536]
[1751671484916,37.401,2514.0,2513.9,0.79536]
[1751671491524,1.352,2514.0,2513.9,0.79536]
[1751671491720,0.6895,2514.2,2514.1,0.79531]
[1751671492019,47.9075,2514.2,2514.1,0.79531]
[1751671492721,49.2198,2514.2,2514.1,0.79531]
[1751671493421,50.01508,2514.2,2514.1,0.79531]
[1751671493621,49.2198,2514.2,2514.1,0.79531]
[1751671494223,50.31521986,2514.2,2514.1,0.79531]
[1751671495226,3.09721986,2514.2,2514.1,0.79531]
[1751671495422,50.31421986,2514.2,2514.1,0.79531]
[1751671496126,3.09721986,2514.2,2514.1,0.79531]
[1751671496326,50.31421986,2514.2,2514.1,0.79531]
[1751671497827,3.09721986,2514.2,2514.1,0.79531]
[1751671498027,48.31141986,2514.2,2514.1,0.79531]
[1751671499230,37.14241986,2514.2,2514.1,0.79531]
[1751671500232,1.09541986,2514.2,2514.1,0.79531]
[1751671500531,37.14241986,2514.2,2514.1,0.79531]
[1751671502235,1.09541986,2514.2,2514.1,0.79531]
[1751671502428,37.14241986,2514.2,2514.1,0.79531]
[1751671503233,0.79531,2514.1,2514.0,0.7083]
[1751671503533,37.4648,2514.2,2514.1,0.79531]
[1751671503733,38.56009637,2514.2,2514.1,0.79531]
[1751671504435,39.35539637,2514.2,2514.1,0.79531]
[1751671506536,38.56009637,2514.2,2513.9,0.79536]
[1751671506734,38.56009637,2514.2,2513.4,6.27087288]
[1751671506735,0.79542,2513.8,2513.7,0.79541]
[1751671506939,36.84042,2513.8,2513.7,0.79541]
[1751671507133,36.045,2513.8,2513.7,0.79541]
[1751671508528,36.84041,2513.8,2513.7,0.79541]
[1751671509140,38.22571,2513.8,2513.7,0.79541]
[1751671509533,0.79544,2513.7,2513.6,0.79545]
[1751671509735,0.79547,2513.6,2513.5,1.47998]
[1751671510040,36.045,2513.6,2513.5,1.47998]
[1751671510340,0.7955,2513.5,2513.4,0.79551]
[1751671510533,2.1808,2513.5,2513.4,0.79551]
[1751671510934,1.3853,2513.5,2513.4,0.79551]
[1751671511434,2.1808,2513.5,2513.4,0.79551]
[1751671512046,1.3853,2513.5,2513.4,0.79551]
[1751671512535,2.1808,2513.5,2513.4,0.79551]
[1751671513641,2.1808,2513.5,2513.0,0.6476]
[1751671513642,0.79556,2513.3,2513.0,0.6476]
[1751671513840,36.047,2513.2,2513.1,0.79563]
[1751671516441,0.6888,2513.4,2513.3,0.79556]
[1751671516641,47.9088,2513.4,2513.3,0.79556]
[1751671517435,49.2439,2513.4,2513.3,0.79556]
[1751671523348,50.03943,2513.4,2513.3,0.79556]
[1751671525550,50.04043,2513.4,2513.3,0.79556]
[1751671526049,0.79563,2513.1,2513.0,0.7082]
[1751671526253,36.051,2513.1,2512.9,0.79567]
[1751671526550,2.81166,2513.0,2512.8,1.48431]
[1751671526749,36.05,2512.9,2512.8,1.48431]
[1751671527155,38.20339,2512.9,2512.8,1.48431]
[1751671527958,37.4077,2512.9,2512.7,0.79574]
[1751671528157,0.79579,2512.6,2512.5,0.7144]
[1751671528353,0.79591,2512.2,2511.7,5.55304792]
[1751671528554,36.051,2512.1,2512.0,0.79598]
[1751671528949,36.051,2512.1,2511.8,1.4209]
[1751671529154,36.84696,2512.1,2511.9,0.79599]
[1751671529355,36.84696,2512.1,2512.0,0.79598]
[1751671529853,36.84696,2512.1,2511.9,0.796]
[1751671530257,36.051,2512.1,2512.0,0.79598]
[1751671530455,36.84694,2512.1,2511.9,0.79599]
[1751671530660,36.051,2512.1,2512.0,0.79598]
[1751671531157,36.84696,2512.1,2511.9,0.79599]
[1751671531361,0.79599,2512.0,2511.8,1.4209]
[1751671531655,2.10729,2512.0,2511.8,2.21692]
[1751671531861,0.79605,2511.8,2511.6,0.79608]
[1751671532056,0.79614,2511.5,2511.3,1.46838]
[1751671532257,36.058,2511.4,2511.3,1.4684]
[1751671532459,36.061,2511.4,2511.3,1.4684]
[1751671533155,36.061,2511.4,2511.3,0.6722]
[1751671533352,0.79621,2511.3,2511.1,0.79625]
[1751671533551,1.4314,2511.2,2511.1,0.79625]
[1751671534161,1.98972,2512.3,2511.0,0.6722]
[1751671534463,2.7325,2511.9,2511.8,0.79604]
[1751671534656,49.9975,2511.9,2511.1,2.82806]
[1751671534854,0.79605,2511.8,2511.6,0.7961]
[1751671535052,1.4314,2511.7,2511.6,0.7961]
[1751671536860,2.22747,2511.7,2511.5,0.79612]
[1751671537060,36.8961,2511.6,2511.4,0.79615]
[1751671537260,1.337,2511.5,2511.4,0.79615]
[1751671540666,1.3011,2511.9,2511.2,1.99058]
[1751671540966,47.269,2511.8,2511.7,0.79607]
[1751671541166,11.176,2511.9,2511.8,0.79604]
[1751671541361,47.272,2511.9,2511.8,0.79604]
[1751671543269,1.4206,2512.2,2512.1,0.79594]
[1751671543470,48.6926,2512.2,2512.1,0.79594]
[1751671543669,49.48851,2512.2,2512.1,0.79594]
[1751671543870,48.6926,2512.2,2512.1,0.79594]
[1751671544164,49.48851,2512.2,2512.1,0.79594]
[1751671544369,48.6926,2512.2,2512.1,0.79594]
[1751671544768,49.48851,2512.2,2512.1,0.79594]
[1751671546873,13.39251,2512.2,2512.1,0.79594]
[1751671547073,49.49751,2512.2,2512.1,0.79594]
[1751671547575,49.49751,2512.2,2512.0,0.79596]
[1751671548372,0.79594,2512.1,2512.0,0.79596]
[1751671550672,0.79598,2512.0,2511.9,1.51199]
[1751671550872,36.89398,2512.0,2511.9,1.51199]
[1751671552277,36.098,2512.0,2511.9,1.51199]
[1751671552779,36.89398,2512.0,2511.9,1.51199]
[1751671553878,36.098,2512.0,2511.9,1.51199]
[1751671554278,0.79595,2512.1,2512.0,0.79595]
[1751671554478,36.88495,2512.1,2512.0,0.79595]
[1751671554678,36.089,2512.1,2512.0,0.79595]
[1751671555179,36.88494,2512.1,2512.0,0.79595]
[1751671555380,36.089,2512.1,2512.0,0.79595]
[1751671558084,1.4206,2512.2,2512.1,0.79594]
[1751671558289,49.78626403,2512.2,2512.1,0.79594]
[1751671558477,1.09766403,2512.2,2512.1,0.79594]
[1751671558683,47.269,2512.2,2512.1,0.79594]
[1751671560188,0.79587,2512.4,2511.9,2.706]
[1751671560489,47.268,2512.2,2512.1,0.79594]
[1751671562891,48.06391,2512.2,2512.1,0.79594]
[1751671563095,49.36061,2512.2,2512.1,0.79594]
[1751671563692,0.79598,2512.0,2511.9,0.716]
[1751671563889,36.88198,2512.0,2511.9,0.716]
[1751671564094,36.88198,2512.0,2511.9,1.51201]
[1751671564294,0.79601,2511.9,2511.8,0.79602]
[1751671564593,2.09271,2511.9,2511.8,0.79602]
[1751671565296,1.2967,2511.9,2511.8,0.79602]
[1751671566296,36.086,2512.0,2511.9,0.79601]
[1751671566794,2.0207,2512.4,2511.7,3.40091]
[1751671566993,48.37333713,2512.3,2512.2,0.79591]
[1751671567390,49.16921713,2512.3,2512.2,0.79591]
[1751671567895,50.49661713,2512.3,2512.2,0.79591]
[1751671568797,49.70073713,2512.3,2512.2,0.79591]
[1751671569486,12.28233713,2512.3,2512.2,0.79591]
[1751671569699,47.271,2512.3,2512.2,0.79591]
[1751671569897,11.184,2512.8,2512.7,0.79573]
[1751671570089,47.291,2512.8,2512.7,0.79573]
[1751671573005,11.184,2512.8,2512.7,0.79573]
[1751671573196,47.283,2512.8,2512.7,0.79573]
[1751671574597,49.3331,2512.8,2512.7,0.79573]
[1751671575204,50.12882,2512.8,2512.7,0.79573]
[1751671575500,0.79584,2512.5,2512.3,0.79587]
[1751671575698,38.2053,2512.4,2511.9,0.7167]
[1751671575900,0.79598,2512.0,2511.5,0.6481]
[1751671576204,38.2613,2511.9,2511.8,0.79604]
[1751671576896,0.6881,2512.4,2511.5,2.63839]
[1751671577201,50.20418,2512.3,2512.1,0.79592]
[1751671577402,0.79591,2512.2,2512.0,0.79595]
[1751671577597,36.163,2512.1,2511.6,1.99026]
[1751671578000,36.163,2512.1,2512.0,0.79598]
[1751671578699,37.5126,2512.1,2512.0,0.79598]
[1751671583421,0.79599,2512.0,2511.8,0.79602]
[1751671583617,37.5311,2511.9,2511.8,0.79602]
[1751671583820,38.1994,2511.9,2511.8,0.79602]
[1751671586320,2.0444,2511.9,2511.8,0.79602]
[1751671586521,11.204,2512.0,2511.9,0.79601]
[1751671586723,47.363,2512.0,2511.9,0.79601]
[1751671587323,48.6983,2512.0,2511.9,0.79601]
[1751671589223,37.4873,2512.0,2511.9,0.79601]
[1751671589731,1.3353,2512.0,2511.9,0.79601]
[1751671589927,37.4893,2512.0,2511.9,0.79601]
[1751671590225,36.154,2512.0,2511.9,0.79601]
[1751671590822,2.8789,2512.3,2512.1,0.79593]
[1751671591023,1.09821621,2512.2,2512.1,0.79593]
[1751671591322,49.80701621,2512.2,2512.1,0.79593]
[1751671592320,2.45201621,2512.2,2512.1,0.79593]
[1751671592526,49.80701621,2512.2,2512.1,0.79593]
[1751671592726,48.7088,2512.2,2512.1,0.79593]
[1751671593927,0.79595,2512.1,2512.0,0.79596]
[1751671594226,2.21035,2512.1,2512.0,0.79596]
[1751671594528,1.4144,2512.1,2512.0,0.79596]
[1751671596325,2.21034,2512.1,2512.0,0.79598]
[1751671600530,47.355,2512.2,2512.1,0.79594]
[1751671600927,48.15091,2512.2,2512.1,0.79594]
[1751671602032,47.355,2512.2,2512.1,0.79594]
[1751671602229,48.45430655,2512.2,2512.1,0.79594]
[1751671602735,47.333,2512.2,2512.1,0.79594]
[1751671603433,11.205,2512.2,2512.1,0.79594]
[1751671603738,47.326,2512.2,2512.1,0.79594]
[1751671606240,2.18936,2512.4,2512.3,0.79588]
[1751671606438,0.79588,2512.3,2512.2,0.7959]
[1751671607241,2.11738,2512.3,2512.2,0.7959]
[1751671607440,38.24738,2512.3,2512.2,0.7959]
[1751671607939,0.79591,2512.2,2512.1,0.79593]
[1751671608140,2.11741,2512.2,2512.1,0.79593]
[1751671609342,1.3215,2512.2,2512.1,0.79593]
[1751671610043,37.4465,2512.2,2512.1,0.79593]
[1751671610643,36.125,2512.2,2512.1,0.79593]
[1751671614845,37.5562,2512.2,2512.1,0.79593]
[1751671615044,38.35211,2512.2,2512.1,0.79593]
[1751671617447,37.5562,2512.2,2512.1,0.79593]
[1751671619450,38.35211,2512.2,2512.1,0.79593]
[1751671619747,37.5562,2512.2,2512.1,0.79593]
[1751671620045,38.35211,2512.2,2512.1,0.79593]
[1751671620445,37.5562,2512.2,2512.1,0.79593]
[1751671626655,38.35211,2512.2,2512.1,0.79593]
[1751671627554,39.45287366,2512.2,2512.1,0.79593]
[1751671629054,38.65696366,2512.2,2512.1,0.79593]
[1751671629656,38.35211,2512.2,2512.1,0.79593]
[1751671630157,37.5562,2512.2,2512.1,0.79593]
[1751671630454,38.65696576,2512.2,2512.1,0.79593]
[1751671630752,1.10076573,2512.2,2512.1,0.79593]
[1751671630957,1.3935,2512.4,2512.3,0.79588]
[1751671631157,49.76626623,2512.4,2512.3,0.79588]
[1751671631457,51.17386623,2512.4,2512.3,0.79588]
[1751671633053,3.90186623,2512.4,2512.3,0.79588]
[1751671633258,51.17186623,2512.4,2512.3,0.79588]
[1751671635958,1.80616623,2512.4,2512.3,0.79588]
[1751671636158,49.07616623,2512.4,2512.3,0.79588]
[1751671636359,48.37076623,2512.4,2512.3,0.79588]
[1751671636554,1.10076623,2512.4,2512.3,0.79588]
[1751671636758,37.18076623,2512.4,2512.3,0.79588]
[1751671637664,1.10076623,2512.4,2512.3,0.79588]
[1751671637869,37.18076623,2512.4,2512.3,0.79588]
[1751671638058,36.08,2512.4,2512.3,0.79588]
[1751671647475,36.08,2512.4,2512.1,0.6475]
[1751671647775,2.0402,2512.3,2512.2,0.7959]
[1751671648274,2.83608,2512.3,2512.2,0.7959]
[1751671649278,2.83608,2512.3,2511.9,0.6572]
[1751671649279,2.0402,2512.3,2511.5,6.0462628]
[1751671649573,40.06396,2512.2,2511.6,0.6512]
[1751671649776,1.98995,2512.0,2511.4,0.79616]
[1751671650082,0.79613,2511.6,2511.4,0.79616]
[1751671650379,39.52493,2511.5,2511.4,0.79616]
[1751671650880,38.7288,2511.5,2511.4,0.79616]
[1751671652881,4.36113258,2512.4,2511.1,1.99065]
[1751671653179,1.3741,2511.8,2511.7,0.79607]
[1751671653575,49.3333,2511.8,2511.7,0.79607]
[1751671654181,50.12934,2511.8,2511.7,0.79607]
[1751671654378,49.3333,2511.8,2511.7,0.79607]
[1751671654884,49.3333,2511.8,2511.6,0.79608]
[1751671655386,0.79607,2511.7,2511.6,0.79608]
[1751671655584,0.7961,2511.6,2511.5,0.79612]
[1751671655785,36.8771,2511.6,2511.4,0.79614]
[1751671655986,1.3243,2511.5,2511.4,0.79614]
[1751671658489,0.6992,2511.8,2511.0,0.96430494]
[1751671658688,47.263,2511.7,2511.6,0.7961]
[1751671660284,0.6992,2511.8,2511.7,0.79607]
[1751671660484,47.9622,2511.8,2511.7,0.79607]
[1751671660680,0.6992,2511.8,2511.7,0.79607]
[1751671660886,36.7822,2511.8,2511.7,0.79607]
[1751671661190,38.1937,2511.8,2511.7,0.79607]
[1751671666592,2.1107,2511.8,2511.7,0.79607]
[1751671666889,38.1947,2511.8,2511.7,0.79607]
[1751671667591,0.6887,2512.1,2511.5,1.99029]
[1751671667889,47.9404,2512.0,2511.9,0.79599]
[1751671668090,49.3286,2512.0,2511.9,0.79599]
[1751671668991,50.12458,2512.0,2511.9,0.79599]
[1751671669580,0.6887,2512.1,2512.0,0.79598]
[1751671669781,48.74764,2512.1,2512.0,0.79598]
[1751671672393,1.48464,2512.1,2512.0,0.79598]
[1751671672592,48.74664,2512.1,2512.0,0.79598]
[1751671673894,1.48464,2512.1,2512.0,0.79598]
[1751671674096,48.74564,2512.1,2512.0,0.79598]
[1751671675493,0.79599,2512.0,2511.9,0.79598]
[1751671677098,11.8677,2512.1,2512.0,0.79598]
[1751671677294,48.74464,2512.1,2512.0,0.79598]
[1751671677695,1.48464,2512.1,2512.0,0.79598]
[1751671677999,37.56564,2512.1,2512.0,0.79598]
[1751671679493,12.68973,2512.2,2512.1,0.79594]
[1751671679693,49.87717247,2512.2,2512.1,0.79594]
[1751671679893,0.79595,2512.1,2512.0,0.79596]
[1751671680497,36.87595,2512.1,2512.0,0.79596]
[1751671681401,36.08,2512.1,2512.0,0.79596]
[1751671682598,1.51073,2512.2,2512.1,0.79594]
[1751671682800,48.76973,2512.2,2512.1,0.79594]
[1751671683200,49.87548188,2512.2,2512.1,0.79594]
[1751671685298,48.76973,2512.2,2512.1,0.79594]
[1751671687103,49.87575457,2512.2,2512.1,0.79594]
[1751671687806,12.99982457,2512.2,2512.1,0.79594]
[1751671688003,47.9718,2512.2,2512.1,0.79594]
[1751671688199,11.8938,2512.2,2512.1,0.79594]
[1751671688405,47.9718,2512.2,2512.1,0.79594]
[1751671691207,0.7148,2512.2,2512.1,0.79594]
[1751671691402,36.7918,2512.2,2512.1,0.79594]
[1751671691806,36.7918,2512.2,2512.0,0.6594]
[1751671691807,13.28028,2512.3,2512.2,0.79591]
[1751671692001,49.35728,2512.3,2512.2,0.79591]
[1751671692808,0.79592,2512.2,2512.1,0.79592]
[1751671693208,1.47862,2512.2,2512.1,0.79592]
[1751671693503,0.6827,2512.2,2512.1,0.79592]
[1751671694908,1.47861,2512.2,2512.1,0.79592]
[1751671695109,2.79431,2512.2,2512.1,0.79592]
[1751671696210,1.9984,2512.2,2512.1,0.79592]
[1751671697513,2.79431,2512.2,2512.1,0.79592]
[1751671698311,3.90056546,2512.2,2512.1,0.79592]
[1751671700413,3.10465546,2512.2,2512.1,0.79592]
[1751671701010,3.90056546,2512.2,2512.1,0.79592]
[1751671701411,3.10465546,2512.2,2512.1,0.79592]
[1751671701710,1.78895546,2512.2,2512.1,0.79592]
[1751671701912,36.073,2512.2,2512.1,0.79592]
[1751671707016,11.178,2512.3,2512.2,0.79591]
[1751671707216,2.83093,2512.5,2512.4,0.79585]
[1751671707417,50.3892323,2512.5,2512.4,0.79585]
[1751671708415,50.38898762,2512.5,2512.4,0.79585]
[1751671709118,51.18480762,2512.5,2512.4,0.79585]
[1751671709318,50.07892,2512.5,2512.4,0.79585]
[1751671711615,2.83092,2512.5,2512.4,0.79585]
[1751671711816,50.07692,2512.5,2512.4,0.79585]
[1751671714819,2.0351,2512.5,2512.4,0.79585]
[1751671715023,36.068,2512.5,2512.4,0.79585]
[1751671716124,11.8849,2512.6,2512.5,0.79582]
[1751671716319,49.3157,2512.6,2512.5,0.79582]
[1751671719830,0.6651,2512.7,2512.6,0.79579]
[1751671720025,36.066,2512.7,2512.6,0.79579]
[1751671725632,58.12473,2512.8,2512.7,0.79575]
[1751671725833,94.18773,2512.8,2512.7,0.79575]
[1751671728234,0.79576,2512.7,2512.6,0.79577]
[1751671728430,94.18774,2512.8,2512.7,0.79575]
[1751671728928,93.392,2512.8,2512.7,0.79575]
[1751671729328,94.074,2512.8,2512.7,0.79575]
[1751671730434,94.86972,2512.8,2512.7,0.79575]
[1751671731835,58.80672,2512.8,2512.7,0.79575]
[1751671732032,94.069,2512.8,2512.7,0.79575]
[1751671740041,95.4185,2512.8,2512.7,0.79575]
[1751671740341,96.21422,2512.8,2512.7,0.79575]
[1751671740543,97.32056368,2512.8,2512.7,0.79575]
[1751671741241,96.52484368,2512.8,2512.3,0.6906]
[1751671741442,0.79589,2512.3,2512.2,0.7959]
[1751671741643,36.85089,2512.3,2512.2,0.7959]
[1751671742942,36.055,2512.3,2512.2,0.7959]
[1751671743544,1.3761,2512.5,2512.4,0.79585]
[1751671743742,49.70969943,2512.5,2512.4,0.79585]
[1751671743938,51.90021943,2512.5,2512.4,0.79585]
[1751671744543,51.10439943,2512.5,2512.4,0.79585]
[1751671745843,57.329,2512.8,2512.7,0.79575]
[1751671746039,105.66255402,2512.8,2512.7,0.79575]
[1751671746545,107.06095402,2512.8,2512.7,0.79575]
[1751671748741,107.06195402,2512.8,2512.7,0.79575]
[1751671750049,107.85767402,2512.8,2512.7,0.79575]
[1751671750349,107.06195402,2512.8,2512.7,0.79575]
[1751671750645,107.85767402,2512.8,2512.7,0.79575]
[1751671751449,107.06195402,2512.8,2512.7,0.79575]
[1751671752748,107.85767402,2512.8,2512.7,0.79575]
[1751671756552,107.06195402,2512.8,2512.7,0.79575]
[1751671758456,107.85767402,2512.8,2512.7,0.79575]
[1751671758754,106.75112,2512.8,2512.7,0.79575]
[1751671758955,0.7958,2512.6,2512.5,0.7958]
[1751671759155,36.8488,2512.6,2512.5,0.7958]
[1751671759655,37.405,2512.6,2512.5,0.7958]
[1751671767057,38.20079,2512.6,2512.5,0.7958]
[1751671767265,38.51250672,2512.6,2512.5,0.7958]
[1751671767565,38.51194912,2512.6,2512.5,0.7958]
[1751671769260,1.10694912,2512.6,2512.5,0.7958]
[1751671769566,36.051,2512.6,2512.5,0.7958]
[1751671774364,37.4235,2512.6,2512.5,0.7958]
[1751671776568,38.53115312,2512.6,2512.5,0.7958]
[1751671780372,37.4235,2512.6,2512.5,0.7958]
[1751671782586,36.051,2512.6,2512.5,0.7958]
[1751671785587,36.046,2512.6,2512.5,0.79582]
[1751671793892,37.4004,2512.6,2512.5,0.79582]
[1751671794687,2.15019,2512.6,2512.5,0.79582]
[1751671794888,38.19319,2512.6,2512.5,0.79582]
[1751671795192,0.79583,2512.5,2512.2,0.6488]
[1751671795390,36.042,2512.4,2512.3,0.79588]
[1751671795690,0.7089,2512.4,2512.3,0.79588]
[1751671795989,36.7509,2512.4,2512.3,0.79588]
[1751671797293,38.1641,2512.4,2512.3,0.79588]
[1751671802996,38.1631,2512.4,2512.3,0.79588]
[1751671803201,36.041,2512.4,2512.3,0.79588]
[1751671811408,37.3725,2512.4,2512.3,0.79588]
[1751671811912,36.041,2512.4,2512.3,0.79588]
[1751671813399,1.3677,2512.6,2512.5,0.79582]
[1751671813607,38.7631,2512.6,2512.5,0.79582]
[1751671817809,40.66471748,2512.6,2512.2,0.6488]
[1751671818009,2.49464186,2512.5,2512.4,0.79585]
[1751671818712,3.29046186,2512.5,2512.4,0.79585]
[1751671818904,2.49464186,2512.5,2512.4,0.79585]
[1751671819306,1.10574186,2512.5,2512.4,0.79585]
[1751671819610,37.14074186,2512.5,2512.4,0.79585]
[1751671820913,38.53104186,2512.5,2512.4,0.79585]
[1751671825014,37.4253,2512.5,2512.4,0.79585]
[1751671830830,36.035,2512.5,2512.4,0.79585]
[1751671831918,1.3677,2512.6,2512.5,0.79582]
[1751671832115,1.4014,2512.8,2512.7,0.79575]
[1751671832315,37.4324,2512.8,2512.7,0.79575]
[1751671834622,1.4014,2512.8,2512.7,0.79575]
[1751671834823,37.4304,2512.8,2512.7,0.79575]
[1751671840829,37.4284,2512.8,2512.7,0.79575]
[1751671842330,1.4014,2512.8,2512.7,0.79575]
[1751671842529,57.316,2513.3,2512.5,0.7065]
[1751671842727,57.316,2513.3,2513.2,0.7956]
[1751671843027,94.44526084,2513.3,2513.2,0.7956]
[1751671843232,95.80226084,2513.3,2513.2,0.7956]
[1751671843429,59.77526084,2513.3,2513.2,0.7956]